Cogmind - Beta 16.1 @@@ ROGUE MODE // 2026.04.05 @ 14:04:25 Player: erfael Result: Destroyed by D-53 Grenadier with Mini Grenade Launcher Performance ------------- Evolutions (0) 0 Regions Visited (2) 400 Robots Destroyed (29) 145 Value Destroyed (417) 417 Prototype IDs (0) 0 Alien Tech Used (0) 0 Bonus (0) 0 TOTAL SCORE: 962 Bonus ------- None Cogmind --------- Core Integrity 0/250 Matter 148/300 Energy 249/250 System Corruption 0% Temperature Cool (0) Movement Core (300) Ox5 Location -10/Mines Parts ------- > --- POWER (1) -------- Ion Engine > --- PROPULSION (2) --- (None) > --- UTILITY (2) ------ Medium Storage Unit Seismic Detector > --- WEAPON (2) ------- Assault Rifle > --- INVENTORY (10) --- Ion Engine Aluminum Leg Improved Terrain Scanner Improved Terrain Scanner Peak State ------------ > --- POWER ------------ Ion Engine > --- PROPULSION ------- Aluminum Leg Aluminum Leg > --- UTILITY ---------- Small Storage Unit Seismic Detector > --- WEAPON ----------- Assault Rifle Assault Rifle > --- INVENTORY -------- Ion Engine Aluminum Leg Improved Terrain Scanner Improved Terrain Scanner Small Laser Grenade Launcher [Rating: 8] Favorites ----------- Power Ion Engine Engine Ion Engine Propulsion Aluminum Leg Leg Aluminum Leg Utility Small Storage Unit Device Seismic Detector Storage Small Storage Unit Weapon Assault Rifle Energy Gun Small Laser Ballistic Gun Assault Rifle Launcher Grenade Launcher Build | -11 -10 -10 ------- Run | Yrd Mat Min Slots Evolved . | . . . Power . | . . . Propulsion . | . . . Utility . | . . . Weapon . | . . . Parts Attached 11 | 7 1 3 Power 1 | 1 . . Engine 1 | 1 . . Core . | . . . Reactor . | . . . Propulsion 2 | 2 . . Treads . | . . . Leg 2 | 2 . . Wheel . | . . . Hover . | . . . Flight . | . . . Utility 3 | 2 . 1 Device 1 | 1 . . Storage 2 | 1 . 1 Processor . | . . . Hackware . | . . . Protection . | . . . Artifact . | . . . Weapon 5 | 2 1 2 Energy Gun 1 | . . 1 Energy Cannon . | . . . Ballistic Gun 2 | 2 . . Ballistic Cannon . | . . . Launcher 2 | . 1 1 Special Weapon . | . . . Impact Weapon . | . . . Slashing Weapon . | . . . Piercing Weapon . | . . . Special Melee Weapon . | . . . Unidentified Prototypes . | . . . Parts Lost 6 | . . 6 Power . | . . . Propulsion 2 | . . 2 Utility . | . . . Weapon 4 | . . 4 Highest Loss Streak 5 | . . 5 To Critical Strikes . | . . . Average Backups 5 | 3 5 6 Power . | . 1 1 Propulsion . | . . 1 Utility 1 | 1 2 2 Weapon 1 | . 2 2 Tool/Special . | . . . Unused Backups 4 | . . 4 Power 1 | . . 1 Propulsion 1 | . . 1 Utility 2 | . . 2 Weapon . | . . . Tool/Special . | . . . Average Slot Usage (%) 97 | . 97 98 Engine 14 | . 14 14 Leg 27 | . 27 27 Device 14 | . 14 14 Storage 14 | . 14 14 Ballistic Gun 18 | . 21 13 Launcher 7 | . 4 13 Peak Build Rating 8 | 7 8 8 Average Rating 7 | 6 7 7 On Entrance 5 | . 7 8 Avg Prop Armor Cover (%) . | . . . Naked Turns . | . . . Heaviest Build 21 | 15 16 21 Greatest Support 20 | 20 20 20 Greatest Overweight (x) 5 | . . 5 Average Overweight (x) . | . . . Largest Inventory Capacity 10 | 8 8 10 Average Capacity 8 | 7 8 8 Most Carried 8 | 4 7 8 Average Carried 5 | 3 5 6 Final Capacity 10 | 8 8 10 Final Carried 7 | 4 7 4 Class Distribution -------------------- 100% | Mutant Dominant Class ---------------- Mutant | -10/Materials Mutant | -10/Mines Resources | -11 -10 -10 ----------- Run | Yrd Mat Min Matter Collected 573 | 384 136 53 Remotely . | . . . Salvage Created 704 | 249 357 98 Parts 58 | 23 33 2 Haulers Intercepted . | . . . Recyclers Shooed 1 | . . 1 Parts Field Recycled . | . . . Retrieved Matter . | . . . Parts Self-Destructed . | . . . Prevented . | . . . Parts Restored . | . . . Kills | -11 -10 -10 ------- Run | Yrd Mat Min Combat Hostiles Destroyed 16 | . 12 4 Guns 6 | . 5 1 AOE 10 | . 7 3 Classes Destroyed 8 | 2 5 1 Worker 2 | . 2 . Builder 2 | . 2 . Tunneler 10 | 9 1 . Recycler 2 | 1 . 1 Operator 1 | . 1 . Swarmer 6 | . 6 . Grunt 6 | . 6 . Assembled 4 | . . 4 Best Kill Streak 8 | 4 8 4 Combat Bots Only 5 | . 5 4 Max Kills in Single Turn 2 | 2 2 2 Gunslinging . | . . . Exploded 2 | . 2 1 Melee . | . . . Uniques/NPCs Destroyed . | . . . Combat | -11 -10 -10 -------- Run | Yrd Mat Min Hostile Shots Fired 71 | . 49 22 Missed 24 | . 15 9 Hits 47 | . 34 13 Melee 1 | . . 1 Projectile 46 | . 34 12 AOE 9 | . . 9 Damage Taken 1011 | . 526 485 Core 284 | . 152 132 Absorbed by Shields . | . . . Regen/Repaired (Parts) 105 | . 105 . Core Remaining (%) 100 | 100 . . Volleys Fired 54 | 19 25 10 Largest 2 | 2 2 2 Hottest 60 | 40 50 60 Shots Fired 103 | 38 49 16 Gun 87 | 38 39 10 Cannon . | . . . Launcher 16 | . 10 6 Special . | . . . Kinetic 85 | 38 39 8 Thermal 2 | . . 2 Explosive 16 | . 10 6 Electromagnetic . | . . . Robot Hit Streak 8 | 8 5 4 Robot Miss Streak 3 | 3 3 2 Penetration Max . | . . . Secondary Targets . | . . . Shots Hit Robots 59 | 22 27 10 Core Hits 44 | 10 23 11 Critical Kills 3 | 2 1 . Critical Parts Destroyed . | . . . Critical Strikes 3 | 2 1 . Destroy 3 | 2 1 . Melee Attacks . | . . . Impact . | . . . Slashing . | . . . Piercing . | . . . Sneak Attacks . | . . . Combat Hostiles . | . . . Follow-up Attacks . | . . . Damage Inflicted 1514 | 290 924 300 Guns 647 | 290 283 74 Cannons . | . . . Explosions 867 | . 641 226 Melee . | . . . Ramming . | . . . Kinetic 647 | 290 283 74 Thermal . | . . . Explosive 867 | . 641 226 Electromagnetic . | . . . Impact . | . . . Slashing . | . . . Piercing . | . . . Highest Corruption . | . . . Average Corruption . | . . . Corruption Purged . | . . . Corruption Blocked . | . . . Overload Shots . | . . . Overflow Damage 52 | . 52 . Projectiles . | . . . Explosions 52 | . 52 . Melee . | . . . Knockbacks . | . . . Impact . | . . . Kinetic . | . . . Secondary . | . . . Self-Inflicted Damage 234 | . 201 33 Shots 8 | . 6 2 Rammed . | . . . Targets Rammed . | . . . Kicked . | . . . Crushed . | . . . Highest Temperature 8 | . 8 . Average Temperature 3 | . 3 . Received Heat Transfer 87 | . 87 . Siege Activations . | . . . Martial Activations . | . . . Shielding Activations . | . . . Robots Disrupted . | . . . Combat Hostiles . | . . . Robots Corrupted . | . . . Combat Hostiles . | . . . Parts Fried . | . . . Impact Corruptions . | . . . Robots Melted . | . . . Combat Hostiles . | . . . Parts Melted . | . . . Heat Transferred . | . . . Parts Sabotaged . | . . . Parts Stolen . | . . . Parts Stripped . | . . . Power Chain Reactions . | . . . Alert | -11 -10 -10 ------- Run | Yrd Mat Min Maximum Alert Level 1 | . 1 . Low Security (%) 93 | 100 83 100 Level 1 6 | . 16 . Level 2 . | . . . Level 3 . | . . . Level 4 . | . . . Level 5 . | . . . High Security . | . . . Max Security . | . . . Peak Influence 337 | 20 337 121 Initial 121 | . . 121 Average 60 | 2 109 54 Influence Increases 571 | 50 482 39 Destroy 0b10 Robot/C 240 | . 240 . Destroy 0b10 Robot/NC 85 | 50 30 5 Destroy Leader 50 | . 50 . Successful Hack 13 | . 13 . Disable Machine 45 | . 45 . Destroy Structure 123 | . 89 34 Lose Combat Pursuer 15 | . 15 . Influence Decreases 571 | 50 171 350 Entered New Map 190 | . . 190 Time Decay 335 | 50 171 114 Lost Part 26 | . . 26 Lost Ally 20 | . . 20 Squads Dispatched 3 | . 3 . Investigation 2 | . 2 . Extermination . | . . . Reinforcement 1 | . 1 . Assault . | . . . Garrison . | . . . Intercept . | . . . Searches Triggered . | . . . Construction Impeded . | . . . Haulers Reinforced . | . . . Active Scanning Responses . | . . . Cargo Convoy Interrupts . | . . . Stealth | -11 -10 -10 --------- Run | Yrd Mat Min Distress Signals 1 | . 1 . Communications Jammed . | . . . Distress Signals . | . . . Times Spotted 26 | . 19 7 Peak Tracking Total 6 | . 6 6 Tactical Retreats 2 | . 1 1 Traps | -11 -10 -10 ------- Run | Yrd Mat Min Traps Triggered 1 | . 1 . Indirectly . | . . . Trap Hack Attempts . | . . . Triggered . | . . . Disarmed . | . . . Reprogrammed . | . . . Reused . | . . . Traps Extracted . | . . . Installed . | . . . Triggered . | . . . Machines | -11 -10 -10 ---------- Run | Yrd Mat Min Machines Disabled 3 | . 3 . Max in Single Turn 3 | . 3 . Machines Repaired . | . . . Machines Dismantled . | . . . Machines Sabotaged . | . . . Overloaded Fab Kills . | . . . Hacking | -11 -10 -10 --------- Run | Yrd Mat Min Machines Accessed 2 | . 2 . Terminals 1 | . 1 . Fabricators . | . . . Repair Stations 1 | . 1 . Recycling Units . | . . . Scanalyzers . | . . . Garrison Access . | . . . Total Hacks 6 | . 6 . Successful 6 | . 6 . Failed . | . . . Catastrophic . | . . . Database Lockouts . | . . . Manual 2 | . 2 . Terminals 2 | . 2 . Fabricators . | . . . Repair Stations 4 | . 4 . Recycling Units . | . . . Scanalyzers . | . . . Garrison Access . | . . . Terminal Hacks 1 | . 1 . Branch Access Points 1 | . 1 . Fabricator Hacks . | . . . Repair Station Hacks 4 | . 4 . Scan Component 2 | . 2 . Repair 2 | . 2 . Recycling Unit Hacks . | . . . Scanalyzer . | . . . Garrison Access Hacks . | . . . Unauthorized Hacks 1 | . 1 . Terminals 1 | . 1 . Botnet 1 | . 1 . Fabricators . | . . . Repair Stations . | . . . Recycling Units . | . . . Scanalyzers . | . . . Garrison Access . | . . . Data Cores Recovered . | . . . Used . | . . . Hacking Detections 2 | . 2 . Full Trace Events 1 | . 1 . Feedback Events . | . . . Feedback Blocked . | . . . Robot Schematics Acquired . | . . . Robots Built . | . . . Authchips . | . . . Time . | . . . Total Robot Build Rating . | . . . Part Schematics Acquired . | . . . Parts Built . | . . . Authchips . | . . . Time . | . . . Total Part Build Rating . | . . . Part Studies Acquired . | . . . Parts Repaired 2 | . 2 . Time 52 | . 52 . Parts Recycled . | . . . Recycled Matter . | . . . Retrieved Matter . | . . . Retrieved Components . | . . . Parts Scanalyzed . | . . . Part Schematics Acquired . | . . . Parts Damaged . | . . . Bothacking | -11 -10 -10 ------------ Run | Yrd Mat Min Used RIF Installer . | . . . Robots Hacked . | . . . Non-combat . | . . . Combat . | . . . Robot Hacks Applied . | . . . Relay Couplers Released . | . . . Fabnet Peak Effective % . | . . . Robots Rewired . | . . . Allies Hacked . | . . . Hacks Repelled . | . . . Allies | -11 -10 -10 -------- Run | Yrd Mat Min Total Allies 2 | . . 2 Largest Group 2 | . . 2 Highest-Rated Group 44 | . . 44 Highest-Rated Ally 31 | . . 31 Total Orders . | . . . Ally Attacks 10 | . . 10 Total Damage 63 | . . 63 Kills 1 | . . 1 Allies Corrupted . | . . . Allies Melted . | . . . Intel | -11 -10 -10 ------- Run | Yrd Mat Min Active Infowar (turns) 836 | 123 424 289 Seismic 836 | 123 424 289 Robot Analysis Total . | . . . Derelict Logs Recovered 1 | . . 1 Drone Launches . | . . . Drone Recoveries . | . . . Exploration | -11 -10 -10 ------------- Run | Yrd Mat Min Turns Passed 1047 | 334 424 289 Spaces Moved 544 | 166 184 194 Core 7 | 5 . 2 Treads . | . . . Legs 537 | 161 184 192 Wheels . | . . . Hover . | . . . Flight . | . . . Fastest Speed 50 | 50 120 120 Average Speed 124 | 117 120 134 Slowest Speed 300 | 120 120 300 Overloaded Moves . | . . . Propulsion Burnouts . | . . . Robots Hopped . | . . . Potential Cave-ins . | . . . Cave-ins Triggered . | . . . Exploration Rate (%) 29 | 4 41 43 Regions Visited 2 Branch Regions 1 Pre-discovered Areas . | . . . Known Exits Taken 1 | . 1 . Unknown Exits Taken 1 | 1 . . Scrap Searched 1 | . . 1 Spaces Dug . | . . . Terrain Destroyed 152 | . 102 50 Melee . | . . . Projectile . | . . . AOE 152 | . 102 50 Terrain Rammed . | . . . Walls Destroyed . | . . . Machines Disabled . | . . . Actions | -11 -10 -10 --------- Run | Yrd Mat Min Total 809 | 263 337 209 Wait 190 | 68 122 . Move 542 | 165 183 194 Hop . | . . . Pick Up 8 | 4 4 . Fast Attach 8 | 7 1 . Attach 4 | . 1 3 Detach . | . . . Swap 2 | . 1 1 Drop 1 | . . 1 Fire 54 | 19 25 10 Melee . | . . . Ram . | . . . Kick . | . . . Crush . | . . . Escape Stasis . | . . . Rewire . | . . . Trap . | . . . Miscellaneous . | . . . Route ------- -11/Scrapyard -10/Materials (discovered 2 exits: *Min x2) -10/Mines History --------- Turn | Location | Event 7 | -11/Scrapyard | Discovered new exit (range 15) 335 | -11/Scrapyard | Entered Materials 336 | -10/Materials | Build established: Mutant 499 | -10/Materials | Identified exit to Mines 637 | -10/Materials | Repaired Aluminum Leg 664 | -10/Materials | Repaired Grenade Launcher 691 | -10/Materials | Core integrity fell below 50% 759 | -10/Materials | Entered Mines 885 | -10/Mines | Learned Materials terminal intel 937 | -10/Mines | Assembled infested the area 1040 | -10/Mines | Core integrity fell below 20% 1048 | -10/Mines | Destroyed by D-53 Grenadier with Mini Grenade Launcher Last Messages --------------- 00947_ Found Med. Storage Unit. 00947_ Found Lgt. Ion Engine. 00947_ Found 53 Matter. 00948_ Acquired 53 matter. 00951_ Dropped Sml. Storage Unit. 00984_ Knocked back. 00985_ as-52210 destroyed. 00985_ Grenade Launcher destroyed. 00985_ Destroyed Grenade Launcher. 00993_ as-41352 destroyed. 00996_ as-86201 destroyed. 00996_ as-13514 destroyed. 00999_ The unstable cave ceiling collapses. 01029_ Assault Rifle destroyed. 01031_ R-06 Scavenger destroyed. 01033_ Aluminum Leg destroyed. 01035_ Grenade Launcher destroyed. 01038_ The unstable cave ceiling collapses. 01045_ Sml. Laser destroyed. 01045_ Aluminum Leg destroyed. Map ----- +----------------------------------------------------+ | ????????????????????????????????????????????????## | | ?????????????????????????????????????????????????# | | ?????????????????????????????????????????????????# | | ????????????????????????????????????????????????## | | ????????????????????????????????????????????????# | | ???????????????????????????????????????????????## | | ??????????????????????????????????????????????## | | ?????????????????????????????????????????????## | | ?????????????????????????????????????????????# | | ?????????????????????????????????????????????# # | | ????????????????????????????????????????????## ## | | ????????????????????????????????????????????# ## | | ????????????????????????????????????????????# # | | ???????????????????????????????????????????## | | ??????????????? ####?????????????????????### | | ???????????????? #####??????####?????## | | ????????????????? ## ##?????# ##???## | | ?????????????????# #?????# ##??# | | ?????????????????# ####??# ##?# ### | | ?????????????????# #???# #### #??## | | ?????????????????? = #???# #####????# | | ???????????????????# % ##### ##??????# | | ???????????????????## !# # ## ##????## | | ??????????????????## d ### ###### " | | ????????????????### ###?## ## " | | ???????????????## @ ##????# ## " | | ??????????????## ###?????## ## ## | | ??###????????## ##??####??#### ## # | | # # #####???# ##??## ##????# # ## | | # ##### #???# #???## #? | | #???# #???# ## | | ! % #???# #????# # | | % ###### # ##??# #????# ## | | # # #????## ## # #### #???# # | | # #???### ##### ##??# #### | | ## #????# #??## #??###???#### | | ## #???# #???## #??????????? | | #???# ##????## #??????????? | | ! #???## ######??????# ## ##??????????? | | #####????# ##???????????## ###?###???????????? | | ?????????## #??????????????####?????????????????? | | ??????????###????????????????????????????????????? | | ?????????????????????????????????????????????????? | | | | | | | | | | | | | | | +----------------------------------------------------+ Best States ------------- Heat Dissipation 25 Energy Generation 10 Energy Capacity 250 Matter Stores 300 Matter Capacity 300 Sight Range 16 Terrain Scan Density 10 Evasion (%) 55 Item Schematics ----------------- None Robot Schematics ------------------ None Fabricated ------------ Nothing Repaired ---------- Aluminum Leg | 18% | -10/Materials Grenade Launcher | 46% | -10/Materials Studied --------- None Alien Tech Used ----------------- None Achievements -------------- None Challenges ------------ None Game ------ Seed EtherialMicroOptics Manual? 0 Play Time 00:10:09 Cumulative 60.2 hours Start 2026.04.05 @ 13:55:10 End 2026.04.05 @ 14:04:25 Sessions 1 Manual Loads 0 Difficulty Rogue Special Mode None Game No. 59 Rogue 59 Adventurer 0 Explorer 0 Win Type - Total 0 Types 0/0/0/0/0/0/0/0/0/0 Lore% 32 Gallery% 27 Achievement% 18 Wizard Run 0 Options --------- Layout 0 ASCII 0 Keyboard 1 Movement Numpad Keybinds 0 Fullscreen 2 Font 20/Terminus Map View 97x62 Zoom Use 0% Tactical HUD 1 Map Filters NONE Filters NONE Steam 1 RUN: 38b1295e-4b5a-4c13-a990-77e0ae666927